lending/lending_fUSD_20260222
["ID","MTS","AMOUNT","RATE_DAILY","PERIOD"]
[406321878,1771737038136,-161.58,0.000151,2]
[406321879,1771737038145,-500.0,0.00015173,2]
[406321880,1771737038159,-1004.26277075,0.00015721,2]
[406321881,1771737038169,-200.0,0.00015807,3]
[406321882,1771737038179,-725.38,0.0001598,2]
[406321883,1771737038191,-540.0,0.0001611,2]
[406321884,1771737038200,-301.0,0.00016416,2]
[406321885,1771737038210,-301.0,0.00016416,2]
[406321886,1771737038220,-354.0,0.00016416,2]
[406321887,1771737038231,-193.0,0.00016499,2]
[406321888,1771737038241,-1680.0,0.00016499,2]
[406321889,1771737038251,-250.0,0.0001661,2]
[406321890,1771737038261,-550.0,0.00017326,2]
[406321891,1771737038270,-28904.90331549,0.00017327,2]
[406321892,1771737038279,-476.31120532,0.00017989,2]
[406321893,1771737038288,-500.0,0.00017989,2]
[406321894,1771737038299,-213.75439126,0.00017989,2]
[406321895,1771737038309,-606.15003289,0.00017989,2]
[406321896,1771737038318,-500.0,0.00017989,2]
[406321897,1771737038328,-500.0,0.00017989,2]
[406321898,1771737038338,-278.62517596,0.00017989,2]
[406321899,1771737038348,-500.0,0.00017989,2]
[406321900,1771737038357,-500.0,0.00017989,2]
[406321901,1771737038367,-500.0,0.00017989,2]
[406321902,1771737038377,-500.0,0.00017989,2]
[406321903,1771737038387,-500.0,0.00017989,2]
[406321904,1771737038396,-500.0,0.00017989,2]
[406321905,1771737038405,-500.0,0.00017989,2]
[406321906,1771737038415,-500.0,0.00017989,2]
[406321907,1771737038424,-500.0,0.00017989,2]
[406321908,1771737038434,-500.0,0.00017989,2]
[406321910,1771737038443,-500.0,0.00017989,2]
[406321912,1771737038452,-500.0,0.00017989,2]
[406321913,1771737038462,-500.0,0.00017989,2]
[406321914,1771737038471,-500.0,0.00017989,2]
[406321915,1771737038481,-500.0,0.00017989,2]
[406321916,1771737038491,-500.0,0.00017989,2]
[406321918,1771737038500,-500.0,0.00017989,2]
[406321919,1771737038510,-500.0,0.00017989,2]
[406321920,1771737038519,-500.0,0.00017989,2]
[406321921,1771737038529,-500.0,0.00017989,2]
[406321922,1771737038538,-500.0,0.00017989,2]
[406321923,1771737038548,-500.0,0.00017989,2]
[406321924,1771737038557,-368.29106212,0.00017989,2]
[406321925,1771737038567,-500.0,0.00017989,2]
[406321926,1771737038577,-500.0,0.00017989,2]
[406321927,1771737038586,-29923.72439814,0.0001799,2]
[406321928,1771737038596,-2283.0,0.00018149,2]
[406321929,1771737038605,-14042.93,0.0001854,2]
[406321930,1771737038614,-311.61,0.0001854,2]
[406321931,1771737038624,-9999.99,0.0001854,2]
[406321932,1771737038634,-13093.13,0.0001854,2]
[406321933,1771737038643,-1542.67,0.0001854,2]
[406321934,1771737038652,-5917.2,0.0001854,2]
[406321935,1771737038662,-9999.99,0.0001854,2]
[406321936,1771737038672,-150.99,0.0001854,2]
[406321937,1771737038682,-406.59665691,0.0001854,2]
[406321938,1771737038692,-500.0,0.0001854,2]
[406321939,1771737038702,-598.91217815,0.0001854,2]
[406321940,1771737038711,-500.0,0.0001854,2]
[406321941,1771737038721,-168.55716327,0.0001854,2]
[406321942,1771737038735,-250.33603502,0.00018706,2]
[406321943,1771737038744,-500.0,0.00018814,2]
[406321944,1771737038754,-8159.95281302,0.00018988,2]
[406321945,1771737038763,-596.90575441,0.00019087,2]
[406321946,1771737038772,-150.99,0.00019088,2]
[406321947,1771737038782,-81504.07,0.00019088,2]
[406321948,1771737038792,-3707.84,0.00019088,2]
[406321949,1771737038802,-1473.86,0.00019088,2]
[406321950,1771737038811,-999.99,0.00019088,2]
[406321951,1771737038821,-499.99,0.00019088,2]
[406321952,1771737038830,-299.99,0.00019088,4]
[406321953,1771737038839,-9999.99,0.00019088,2]
[406321954,1771737038849,-2985.8,0.00019088,2]
[406321955,1771737038858,-9999.99,0.00019088,2]
[406321956,1771737038868,-253.88933605,0.00019088,2]
[406321957,1771737038877,-173.78509278,0.00019254,2]
[406321958,1771737038886,-569.97210533,0.00019254,2]
[406321959,1771737038896,-569.97210533,0.00019354,2]
[406321960,1771737038905,-200.0,0.00021093,2]
[406321961,1771737038915,-191.0,0.00021113,2]
[406321962,1771737038925,-1283.0,0.00021212,2]
[406321963,1771737038934,-255.16983953,0.00021509,2]
[406321964,1771737038943,-8159.95281298,0.00021879,2]
[406321965,1771737038953,-1071.2994461,0.00021899,2]
[406321966,1771737038963,-285.0,0.00022065,2]
[406321967,1771737038974,-9999.99,0.00023368,2]
[406321968,1771737038984,-8159.95281298,0.00024771,2]
[406321969,1771737038994,-8159.95281298,0.00027662,2]
[406321970,1771737039003,-725.38,0.00027761,2]
[406321971,1771737039176,-200.0,0.00029064,19]
[406321972,1771737039186,-151.0,0.0003,7]
[406321973,1771737039198,-8159.95281298,0.00030553,2]
[406321974,1771737039208,-8159.95281298,0.00033445,2]
[406321975,1771737039218,-151.0,0.00035,7]
[406321976,1771737039228,-168.0,0.00035497,2]
[406321977,1771737039237,-174.613238,0.00035662,60]
[406321978,1771737039247,-3240.0,0.00036311,120]
[406321979,1771737039256,-8159.95281298,0.00036336,2]
[406321980,1771737039266,-1000.0,0.00036569,2]
[406321981,1771737039275,-1445.838,0.00036973,47]
[406321982,1771737039284,-163.64,0.00036973,47]
[406321983,1771737039293,-177.09999789,0.000372,120]
[406321984,1771737039304,-168.0,0.00037318,2]
[406321985,1771737039313,-168.0,0.00037802,2]
[406321986,1771737039323,-168.0,0.00037829,2]
[406321987,1771737039334,-168.0,0.00037903,2]
[406321988,1771737039343,-168.0,0.0003791,2]
[406321989,1771737039352,-9670.63688947,0.00038,120]
[406321990,1771737039361,-160.0,0.00038,120]
[406321991,1771737039370,-151.0,0.00038,14]
[406321992,1771737039379,-1000.0,0.00038037,20]
[406321993,1771737039389,-5000.0,0.000384,2]
[406321994,1771737039398,-1928.91908405,0.00038455,2]
[406321995,1771737039407,-1596.80595797,0.00038499,20]
[406321996,1771737039416,-200.0,0.00038555,2]
[406321997,1771737039425,-200.0,0.00038563,55]
[406321998,1771737039434,-500.0,0.00038589,8]
[406321999,1771737039442,-500.0,0.00038589,8]
[406322000,1771737039451,-500.0,0.00038589,8]
[406322001,1771737039460,-500.0,0.00038589,8]
[406322002,1771737039471,-500.0,0.00038589,8]
[406322003,1771737039481,-500.0,0.00038589,8]
[406322004,1771737039490,-634.6664049,0.00038589,8]
[406322005,1771737039500,-1000.0,0.00038606,2]
[406322006,1771737039509,-157.07,0.00038646,30]
[406322007,1771737039519,-1020.95,0.000388,30]
[406322008,1771737039528,-10000.0,0.0003917,2]
[406322009,1771737039537,-176.72638,0.0003917,120]
[406322010,1771737039546,-176.72638,0.0003917,120]
[406322011,1771737039555,-176.72638,0.0003917,120]
[406322012,1771737039564,-176.72638,0.0003917,120]
[406322013,1771737039573,-151.0,0.0003917,120]
[406322014,1771737039582,-276.09510377,0.0003917,2]
[406322015,1771737039591,-1205.1336,0.0003918,2]
[406322016,1771737039600,-8159.95281298,0.00039227,2]
[406322017,1771737039609,-1179.0,0.00039233,120]
[406322018,1771737039618,-151.0,0.0003927,120]
[406322019,1771737039627,-500.0,0.00039279,8]
[406322020,1771737039635,-500.0,0.00039279,8]
[406322021,1771737039644,-500.0,0.00039279,8]
[406322022,1771737039653,-500.0,0.00039279,8]
[406322023,1771737039662,-500.0,0.00039279,8]
[406322024,1771737039671,-500.0,0.00039279,8]
[406322025,1771737039681,-500.0,0.00039279,8]
[406322026,1771737039690,-500.0,0.00039279,8]
[406322027,1771737039699,-617.7112726,0.00039279,8]
[406322028,1771737039708,-1252.5146457,0.0003928,2]
[406322029,1771737039716,-151.78898783,0.0003928,2]
[406322030,1771737039726,-195.69351822,0.0003928,2]
[406322031,1771737039735,-187.31,0.000395,14]
[406322032,1771737039744,-160.38,0.000395,14]
[406322033,1771737039753,-1043.04,0.000395,30]
[406322034,1771737039764,-151.0,0.000395,120]
[406322035,1771737039773,-920.0,0.0003953,2]
[406322036,1771737039781,-725.38,0.00039542,2]
[406322037,1771737039791,-500.0,0.00039655,2]
[406322038,1771737039800,-300.0,0.000397,14]
[406322039,1771737039809,-166.66,0.00039741,30]
[406322040,1771737039818,-1240.38060323,0.00039786,15]
[406322041,1771737039827,-700.0,0.000398,14]
[406322042,1771737039836,-276.09510371,0.00039819,2]
[406322043,1771737039846,-593.7997736,0.00039876,2]
[406322044,1771737039855,-306.6537944,0.00039885,10]
[406322045,1771737039864,-150.0,0.00039885,2]
[406322046,1771737039873,-150.0,0.00039885,2]
[406322047,1771737039883,-282.47628431,0.00039885,2]
[406322048,1771737039892,-29688.35710574,0.00039886,21]
[406322049,1771737039901,-57104.13991481,0.00039886,2]
[406322050,1771737040458,-4163.35357007,0.00039886,2]
[406322051,1771737040619,-760582.84850882,0.00039886,2]
[406322052,1771737040629,-26350.0944482,0.00039886,2]
[406322053,1771737040640,-410925.170997,0.00039886,2]
[406322054,1771737040650,-151.0,0.00039886,120]
[406322055,1771737040661,-151.0,0.00039886,120]
[406322056,1771737040672,-176.72638,0.00039886,120]
[406322057,1771737040682,-176.72638,0.00039886,120]
[406322058,1771737040691,-176.72638,0.00039886,120]
[406322059,1771737040701,-176.72638,0.00039886,120]
[406322060,1771737040710,-176.72638,0.00039886,120]
[406322061,1771737040719,-176.72638,0.00039886,120]
[406322062,1771737040728,-176.72638,0.00039886,120]
[406322063,1771737040737,-176.72638,0.00039886,120]
[406322064,1771737040746,-151.0,0.00039886,120]
[406322065,1771737040755,-151.0,0.00039886,120]
[406322066,1771737040764,-151.0,0.00039886,60]
[406322067,1771737040774,-151.0,0.00039886,60]
[406322069,1771737040783,-151.0,0.00039886,60]
[406322071,1771737040791,-154.081366,0.00039886,60]
[406322073,1771737040800,-151.0,0.00039886,120]
[406322075,1771737040809,-153.995591,0.00039886,120]
[406322077,1771737040818,-43901.9521043,0.00039886,2]
[406322078,1771737040827,-151.0,0.00039886,120]
[406322079,1771737040836,-151.0,0.00039886,120]
[406322080,1771737040845,-151.0,0.00039886,120]
[406322081,1771737040854,-151.0,0.00039886,120]
[406322082,1771737040863,-151.0,0.00039886,14]
[406322083,1771737040872,-209.147911,0.00039886,14]
[406322084,1771737040880,-151.0,0.00039886,7]
[406322085,1771737040890,-630.099207,0.00039886,120]
[406322086,1771737040899,-151.0,0.00039886,7]
[406322087,1771737040907,-630.099207,0.00039886,120]
[406322088,1771737040916,-151.0,0.00039886,7]
[406322089,1771737040925,-151.0,0.00039886,7]
[406322090,1771737040934,-630.099207,0.00039886,120]
[406322091,1771737040944,-630.099207,0.00039886,120]
[406322092,1771737040953,-151.0,0.00039886,7]
[406322093,1771737040962,-151.0,0.00039886,7]
[406322094,1771737040972,-630.099207,0.00039886,120]
[406322095,1771737040981,-630.099207,0.00039886,120]
[406322096,1771737040990,-630.099207,0.00039886,120]
[406322097,1771737040999,-630.099207,0.00039886,120]
[406322098,1771737041008,-151.0,0.00039886,120]
[406322099,1771737041017,-151.0,0.00039886,120]
[406322100,1771737041026,-151.0,0.00039886,120]
[406322101,1771737041035,-151.0,0.00039886,120]
[406322102,1771737041044,-151.0,0.00039886,120]
[406322103,1771737041053,-240.686899,0.00039886,120]
[406322104,1771737041062,-487.0,0.00039886,2]
[406322105,1771737041071,-487.0,0.00039886,2]
[406322106,1771737041080,-487.0,0.00039886,2]
[406322107,1771737041089,-909.95,0.00039886,2]
[406322108,1771737041099,-1000.0,0.000399,14]
[406322109,1771737041108,-7877.0,0.00039934,5]
[406322110,1771737041117,-1852.42,0.00039978,2]
[406322111,1771737041126,-151.0,0.0004,120]
[406322112,1771737041135,-13123.73476604,0.0004,4]
[406322113,1771737041145,-150.57,0.0004,2]
[406322114,1771737041158,-150.57,0.0004,2]
[406322115,1771737041167,-150.57,0.0004,2]
[406322116,1771737041176,-150.57,0.0004,2]
[406322117,1771737041186,-150.57,0.0004,2]
[406322118,1771737041197,-150.57,0.0004,2]
[406322119,1771737041206,-150.57,0.0004,2]
[406322120,1771737041215,-150.57,0.0004,2]
[406322121,1771737041227,-150.57,0.0004,2]
[406322122,1771737041236,-150.57,0.0004,2]
[406322123,1771737041246,-150.57,0.0004,2]
[406322124,1771737041255,-150.57,0.0004,2]
[406322125,1771737041264,-150.57,0.0004,2]
[406322126,1771737041274,-150.57,0.0004,2]
[406322127,1771737041284,-150.57,0.0004,2]
[406322128,1771737041293,-150.57,0.0004,2]
[406322129,1771737041302,-150.57,0.0004,2]
[406322130,1771737041311,-150.57,0.0004,2]
[406322131,1771737041321,-150.57,0.0004,2]
[406322132,1771737041330,-150.57,0.0004,2]
[406322133,1771737041339,-150.57,0.0004,2]
[406322134,1771737041348,-150.57,0.0004,2]
[406322135,1771737041357,-150.57,0.0004,2]
[406322136,1771737041366,-150.57,0.0004,2]
[406322137,1771737041375,-150.57,0.0004,2]
[406322138,1771737041384,-150.57,0.0004,2]
[406322139,1771737041393,-150.57,0.0004,2]
[406322140,1771737041403,-150.57,0.00040065,2]
[406322141,1771737041412,-150.57,0.00040065,2]
[406322142,1771737041422,-500.0,0.00040075,30]
[406322143,1771737041437,-600.0,0.00040075,30]
[406322144,1771737041446,-500.0,0.00040075,30]
[406322145,1771737041455,-500.0,0.00040075,30]
[406322146,1771737041464,-600.0,0.00040075,30]
[406322147,1771737041473,-500.0,0.00040075,30]
[406322148,1771737041482,-500.0,0.00040075,30]
[406322149,1771737041491,-500.0,0.00040075,30]
[406322150,1771737041500,-500.0,0.00040075,30]
[406322151,1771737041509,-500.0,0.00040075,30]
[406322152,1771737041519,-600.0,0.00040075,30]
[406322153,1771737041528,-500.0,0.00040075,30]
[406322154,1771737041537,-500.0,0.00040075,30]
[406322155,1771737041545,-500.0,0.00040075,30]
[406322156,1771737041554,-502.27576651,0.00040075,30]
[406322157,1771737041563,-500.0,0.00040075,30]
[406322158,1771737041573,-600.0,0.00040075,30]
[406322159,1771737041582,-500.0,0.00040075,30]
[406322160,1771737041591,-502.09423442,0.00040075,30]
[406322161,1771737041600,-500.0,0.00040075,30]
[406322162,1771737041609,-600.0,0.00040075,30]
[406322163,1771737041618,-500.0,0.00040075,30]
[406322164,1771737041627,-500.0,0.00040075,30]
[406322165,1771737041636,-600.0,0.00040075,30]
[406322166,1771737041645,-500.0,0.00040075,30]
[406322167,1771737041654,-500.0,0.00040075,30]
[406322168,1771737041663,-500.0,0.00040075,30]
[406322169,1771737041672,-600.0,0.00040075,30]
[406322170,1771737041681,-500.0,0.00040075,30]
[406322171,1771737041690,-500.0,0.00040075,30]
[406322172,1771737041699,-600.0,0.00040075,30]
[406322173,1771737041708,-500.0,0.00040075,30]
[406322174,1771737041717,-500.0,0.00040075,30]
[406322175,1771737041727,-600.0,0.00040075,30]
[406322176,1771737041736,-500.0,0.00040075,30]
[406322177,1771737041747,-600.0,0.00040075,30]
[406322178,1771737041756,-500.0,0.00040075,30]
[406322179,1771737041765,-500.0,0.00040075,30]
[406322180,1771737041775,-600.0,0.00040075,30]
[406322181,1771737041783,-500.0,0.00040075,30]
[406322182,1771737041792,-500.0,0.00040075,30]
[406322183,1771737041802,-600.0,0.00040075,30]
[406322184,1771737041812,-500.0,0.00040075,30]
[406322185,1771737041821,-600.0,0.00040075,30]
[406322186,1771737041831,-500.0,0.00040075,30]
[406322187,1771737041840,-500.0,0.00040075,30]
[406322188,1771737041850,-600.0,0.00040075,30]
[406322189,1771737041859,-500.0,0.00040075,30]
[406322190,1771737041868,-500.0,0.00040075,30]
[406322191,1771737041877,-600.0,0.00040075,30]
[406322192,1771737041887,-514.09994755,0.00040075,30]
[406322193,1771737041896,-500.0,0.00040075,30]
[406322194,1771737041907,-600.0,0.00040075,30]
[406322195,1771737041916,-500.0,0.00040075,30]
[406322196,1771737041925,-600.0,0.00040075,30]
[406322197,1771737041934,-500.0,0.00040075,30]
[406322198,1771737041945,-600.0,0.00040075,30]
[406322199,1771737041955,-500.7,0.00040075,30]
[406322200,1771737041963,-500.0,0.00040075,30]
[406322201,1771737041973,-600.0,0.00040075,30]
[406322202,1771737041982,-500.0,0.00040075,30]
[406322203,1771737041991,-600.0,0.00040075,30]
[406322204,1771737042000,-670.06942864,0.00040075,30]
[406322205,1771737042010,-500.0,0.00040075,30]
[406322206,1771737042019,-500.0,0.00040075,30]
[406322207,1771737042029,-1400.0,0.00040075,30]
[406322208,1771737042039,-600.0,0.00040075,30]
[406322209,1771737042049,-500.0,0.00040075,30]
[406322210,1771737042059,-861.7942125,0.00040075,30]
[406322211,1771737042068,-1400.0,0.00040075,30]
[406322212,1771737042077,-600.0,0.00040075,30]
[406322213,1771737042086,-500.0,0.00040075,30]
[406322214,1771737042094,-500.0,0.00040075,30]
[406322215,1771737042104,-1400.0,0.00040075,30]
[406322216,1771737042113,-600.0,0.00040075,30]
[406322217,1771737042121,-500.0,0.00040075,30]
[406322218,1771737042130,-500.0,0.00040075,30]
[406322219,1771737042139,-1400.0,0.00040075,30]
[406322220,1771737042150,-600.0,0.00040075,30]
[406322221,1771737042160,-506.44354176,0.00040075,30]
[406322222,1771737042169,-500.0,0.00040075,30]
[406322223,1771737042178,-1400.0,0.00040075,30]
[406322224,1771737042187,-500.0,0.00040075,30]
[406322225,1771737042197,-600.0,0.00040075,30]
[406322226,1771737042206,-1400.0,0.00040075,30]
[406322227,1771737042214,-500.0,0.00040075,30]
[406322228,1771737042225,-600.0,0.00040075,30]
[406322229,1771737042233,-500.0,0.00040075,30]
[406322230,1771737042242,-1400.0,0.00040075,30]
[406322231,1771737042251,-502.57942958,0.00040075,30]
[406322232,1771737042261,-600.0,0.00040075,30]
[406322233,1771737042270,-500.0,0.00040075,30]
[406322234,1771737042279,-1400.0,0.00040075,30]
[406322235,1771737042288,-840.93616827,0.00040075,30]
[406322236,1771737042296,-501.57677023,0.00040075,30]
[406322237,1771737042306,-500.0,0.00040075,30]
[406322238,1771737042315,-500.0,0.00040075,30]
[406322239,1771737042323,-500.0,0.00040075,30]
[406322240,1771737042332,-1400.0,0.00040075,30]
[406322241,1771737042341,-607.23173059,0.00040075,30]
[406322242,1771737042350,-500.0,0.00040075,30]
[406322243,1771737042359,-501.32128409,0.00040075,30]
[406322244,1771737042368,-721.20067298,0.00040075,30]
[406322245,1771737042377,-500.0,0.00040075,30]
[406322246,1771737042387,-500.0,0.00040075,30]
[406322247,1771737042396,-500.0,0.00040075,30]
[406322248,1771737042405,-1400.0,0.00040075,30]
[406322249,1771737042414,-500.0,0.00040075,30]
[406322250,1771737042423,-500.0,0.00040075,30]
[406322251,1771737042432,-500.0,0.00040075,30]
[406322252,1771737042441,-1400.0,0.00040075,30]
[406322253,1771737042450,-500.0,0.00040075,30]
[406322254,1771737042459,-503.49606988,0.00040075,30]
[406322255,1771737042468,-500.0,0.00040075,30]
[406322256,1771737042478,-1400.0,0.00040075,30]
[406322257,1771737042487,-500.0,0.00040075,30]
[406322258,1771737042496,-500.0,0.00040075,30]
[406322259,1771737042505,-1400.0,0.00040075,30]
[406322260,1771737042514,-500.0,0.00040075,30]
[406322261,1771737042522,-500.0,0.00040075,30]
[406322262,1771737042531,-1400.0,0.00040075,30]
[406322263,1771737042541,-500.0,0.00040075,30]
[406322264,1771737042550,-500.0,0.00040075,30]
[406322265,1771737042559,-1400.0,0.00040075,30]
[406322266,1771737042568,-500.0,0.00040075,30]
[406322267,1771737042577,-500.0,0.00040075,30]
[406322268,1771737042586,-1400.0,0.00040075,30]
[406322269,1771737042595,-612.80832906,0.00040075,30]
[406322270,1771737042604,-500.0,0.00040075,30]
[406322271,1771737042613,-1400.0,0.00040075,30]
[406322272,1771737042622,-500.0,0.00040075,30]
[406322273,1771737042631,-1400.0,0.00040075,30]
[406322274,1771737042639,-500.0,0.00040075,30]
[406322275,1771737042649,-500.0,0.00040075,30]
[406322276,1771737042658,-1400.0,0.00040075,30]
[406322277,1771737042667,-500.0,0.00040075,30]
[406322278,1771737042676,-500.0,0.00040075,30]
[406322279,1771737042686,-1400.0,0.00040075,30]
[406322280,1771737042695,-500.0,0.00040075,30]
[406322281,1771737042704,-500.0,0.00040075,30]
[406322282,1771737042713,-1400.0,0.00040075,30]
[406322283,1771737042722,-500.0,0.00040075,30]
[406322284,1771737042732,-500.0,0.00040075,30]
[406322285,1771737042741,-1400.0,0.00040075,30]
[406322286,1771737042750,-500.0,0.00040075,30]
[406322287,1771737042759,-500.0,0.00040075,30]
[406322288,1771737042768,-1400.0,0.00040075,30]
[406322289,1771737042777,-500.0,0.00040075,30]
[406322290,1771737042787,-500.0,0.00040075,30]
[406322292,1771737042796,-1400.0,0.00040075,30]
[406322294,1771737042806,-500.0,0.00040075,30]
[406322296,1771737042816,-897.28720597,0.00040075,30]
[406322298,1771737042825,-1400.0,0.00040075,30]
[406322300,1771737042835,-506.93434297,0.00040075,30]
[406322302,1771737042844,-1400.0,0.00040075,30]
[406322304,1771737042854,-1400.0,0.00040075,30]
[406322306,1771737042864,-2559.75499047,0.00040075,30]
[406322307,1771737042875,-151.0,0.00040075,120]
[406322308,1771737042884,-253.112232,0.00040075,120]
[406322309,1771737042893,-151.0,0.00040075,7]
[406322310,1771737042903,-630.099207,0.00040075,120]
[406322311,1771737042912,-151.0,0.00040075,7]
[406322312,1771737042922,-630.099207,0.00040075,120]
[406322313,1771737042931,-269.568918,0.00040075,7]
[406322314,1771737042940,-630.099207,0.00040075,120]
[406322315,1771737042949,-630.099207,0.00040075,120]
[406322316,1771737042958,-151.0,0.00040075,120]
[406322317,1771737042967,-151.0,0.00040075,120]
[406322318,1771737042977,-1000.0,0.00040368,120]
[406322319,1771737042987,-276.09510371,0.00040468,15]
[406322320,1771737042996,-166.66,0.00040543,30]
[406322321,1771737043005,-754.0,0.00040566,30]
[406322322,1771737043014,-300.83760055,0.00040584,2]
[406322323,1771737043023,-300.83908448,0.00040584,2]
[406322324,1771737043032,-300.78502764,0.00040584,2]
[406322325,1771737043042,-300.0,0.00040584,2]
[406322326,1771737043051,-855.68345202,0.00040584,2]
[406322327,1771737043060,-884.25866852,0.00040584,2]
[406322328,1771737043069,-1580.31442261,0.00040584,2]
[406322329,1771737043079,-300.9325419,0.00040584,2]
[406322331,1771737043088,-300.82411845,0.00040584,2]
[406322333,1771737043097,-300.0,0.00040584,2]
[406322334,1771737043106,-307.19972653,0.00040584,2]
[406322335,1771737043116,-300.79515505,0.00040584,2]
[406322336,1771737043125,-300.85310492,0.00040584,2]
[406322337,1771737043134,-458.66921193,0.00040584,2]
[406322338,1771737043143,-301.5418478,0.00040584,2]
[406322339,1771737043157,-301.02510289,0.00040584,2]
[406322340,1771737043166,-300.80196961,0.00040584,2]
[406322341,1771737043175,-371.30350817,0.00040584,2]
[406322342,1771737043185,-301.63329717,0.00040584,2]
[406322343,1771737043195,-300.87253775,0.00040584,2]
[406322345,1771737043204,-302.0219448,0.00040584,2]
[406322346,1771737043214,-300.8081846,0.00040584,2]
[406322347,1771737043226,-300.88703032,0.00040584,2]
[406322348,1771737043235,-300.0,0.00040584,2]
[406322349,1771737043244,-518.44464902,0.00040584,2]
[406322350,1771737043254,-300.0,0.00040584,2]
[406322351,1771737043263,-301.05539222,0.00040584,2]
[406322352,1771737043272,-5000.0,0.00040721,120]
[406322353,1771737043281,-598.93,0.0004076,2]
[406322354,1771737043290,-151.0,0.000408,120]
[406322355,1771737043300,-746.0,0.00040939,30]
[406322356,1771737043310,-150.57,0.0004094,2]
[406322357,1771737043319,-151.0,0.0004095,120]
[406322358,1771737043329,-176.72638,0.0004095,120]
[406322359,1771737043339,-176.72638,0.0004095,120]
[406322360,1771737043351,-176.72638,0.0004095,120]
[406322361,1771737043361,-176.72638,0.0004095,120]
[406322362,1771737043371,-59811.0,0.0004095,60]
[406322363,1771737043380,-1000.0,0.0004095,2]
[406322364,1771737043389,-1000.0,0.0004095,2]
[406322365,1771737043398,-151.0,0.0004095,60]
[406322366,1771737043407,-345.09360808,0.00041,120]
[406322367,1771737043416,-988.17924809,0.00041,2]
[406322368,1771737043424,-747.0,0.00041048,30]
[406322369,1771737043433,-150.57,0.00041086,2]
[406322370,1771737043440,-842.0,0.00041096,120]
[406322371,1771737043449,-151.0,0.00041096,120]
[406322372,1771737043458,-151.0,0.00041096,120]
[406322373,1771737043466,-151.0,0.00041096,120]
[406322374,1771737043475,-181.11645,0.00041096,120]
[406322375,1771737043495,-151.0,0.00041096,120]
[406322376,1771737043508,-151.0,0.00041096,120]
[406322377,1771737043518,-151.0,0.00041096,120]
[406322378,1771737043527,-151.0,0.00041096,120]
[406322379,1771737043536,-151.0,0.00041096,120]
[406322380,1771737043546,-151.0,0.00041096,120]
[406322381,1771737043555,-151.0,0.00041096,120]
[406322382,1771737043701,-151.0,0.00041096,120]
[406322383,1771737043711,-194.963431,0.00041096,120]
[406322384,1771737043721,-151.0,0.00041096,60]
[406322385,1771737043731,-151.0,0.00041096,60]
[406322386,1771737043740,-151.0,0.00041096,60]
[406322387,1771737043749,-151.0,0.00041096,60]
[406322388,1771737043759,-151.0,0.00041096,60]
[406322389,1771737043768,-151.0,0.00041096,60]
[406322390,1771737043778,-151.0,0.00041096,60]
[406322391,1771737043787,-151.0,0.00041096,60]
[406322392,1771737043797,-301.212232,0.00041096,120]
[406322393,1771737043807,-301.212232,0.00041096,120]
[406322394,1771737043816,-301.212232,0.00041096,120]
[406322396,1771737043826,-301.212232,0.00041096,120]
[406322398,1771737043836,-301.212232,0.00041096,120]